bitfinex/quotes_ETHUSD_20250219
["timestamp","ask_amount","ask_price","bid_price","bid_amount"]
[1739962351975,0.8297,2729.9,2729.3,9.02385]
[1739962352245,0.8297,2729.9,2729.6,3.6635]
[1739962352747,0.8297,2729.9,2729.4,3.6637]
[1739962353043,0.8297,2729.9,2729.6,3.66352]
[1739962354248,0.8297,2729.9,2729.6,3.66346]
[1739962356125,0.8297,2729.9,2729.6,7.32691]
[1739962356328,0.8297,2729.9,2729.7,3.66333]
[1739962361871,0.5,2730.0,2729.8,3.66327]
[1739962362383,0.5,2730.0,2729.8,3.66327]
[1739962363276,0.5,2730.0,2729.8,3.66326]
[1739962364477,0.8062,2729.9,2729.4,1.37478095]
[1739962364783,0.8062,2729.9,2729.5,4.106924]
[1739962365154,0.8062,2729.9,2729.5,7.770524]
[1739962365653,0.8062,2729.9,2729.5,4.106924]
[1739962365858,0.8062,2729.9,2729.6,3.66345]
[1739962366378,4.46933,2729.9,2729.5,0.443334]
[1739962366605,0.8062,2729.9,2729.5,4.106954]
[1739962367044,0.8062,2729.9,2729.6,0.265]
[1739962368989,0.8062,2729.9,2729.6,3.92843]
[1739962369449,0.8062,2729.9,2729.6,0.265]
[1739962370477,4.46935,2729.9,2729.6,0.265]
[1739962370645,3.6633,2729.8,2729.6,0.265]
[1739962371683,4.46934,2729.9,2729.6,0.265]
[1739962372485,3.66329,2729.8,2729.3,5.36]
[1739962372697,2.23801895,2729.9,2729.4,0.265]
[1739962372852,0.7885,2729.8,2729.4,0.265]
[1739962373198,0.7885,2729.5,2729.4,0.265]
[1739962375589,0.7885,2729.5,2729.3,5.36]
[1739962379006,3.6638,2729.4,2729.3,5.36]
[1739962379176,4.4311,2729.4,2729.3,5.36]
[1739962379371,5.3780561,2729.4,2729.3,5.36]
[1739962380892,5.3780561,2729.4,2728.8,9.075]
[1739962380893,3.66397,2729.3,2728.8,3.9296]
[1739962382376,3.66408,2729.2,2728.8,0.265]
[1739962382777,3.66397,2729.3,2728.8,0.265]
[1739962383469,3.66397,2729.3,2728.9,3.66447]
[1739962383671,4.43113,2729.4,2728.9,3.66447]
[1739962384596,3.66417,2729.2,2728.8,0.265]
[1739962384795,3.66402,2729.3,2728.8,2.59889395]
[1739962384986,3.66402,2729.3,2728.8,6.26348395]
[1739962386078,3.66402,2729.3,2728.8,6.26343395]
[1739962386424,4.43117,2729.4,2728.9,3.66447]
[1739962386803,0.7673,2729.4,2729.0,0.03664043]
[1739962387003,3.795,2729.6,2729.2,3.66394]
[1739962387175,0.795,2729.8,2729.3,0.7956]
[1739962387374,4.45827,2729.8,2729.3,4.4595]
[1739962387824,0.795,2729.8,2729.4,3.6638]
[1739962388003,6.66316,2729.9,2729.4,7.3276]
[1739962388331,3.0,2729.9,2729.4,3.6638]
[1739962388621,1.3172,2730.0,2729.7,3.66337]
[1739962388825,0.5,2730.0,2729.8,4.42356]
[1739962389120,0.5,2730.0,2729.9,3.66313]
[1739962392734,0.5,2730.0,2729.9,9.78103]
[1739962393400,0.5,2730.0,2729.9,12.78103]
[1739962393597,0.5,2730.0,2729.9,14.64198557]
[1739962395415,0.5,2730.0,2729.9,23.45198557]
[1739962395923,0.5,2730.0,2729.9,19.78885557]
[1739962396127,0.5,2730.0,2729.9,23.45198557]
[1739962396294,0.5,2730.0,2729.9,19.78885557]
[1739962396503,0.5,2730.0,2729.9,20.83313]
[1739962397820,0.5,2730.0,2729.9,21.63253]
[1739962398701,0.5,2730.0,2729.9,12.82253]
[1739962401191,0.5,2730.0,2729.9,15.56884863]
[1739962413169,0.5,2730.0,2729.9,15.83384863]
[1739962413467,0.5,2730.0,2729.9,18.30225345]
[1739962413770,0.5,2730.0,2729.9,7.82840482]
[1739962414273,0.5,2730.0,2729.9,11.49153482]
[1739962418273,0.5,2730.0,2729.9,9.02313]
[1739962418472,0.5,2730.0,2729.9,5.36]
[1739962419393,0.5,2730.0,2729.9,9.02313]
[1739962419578,0.5,2730.0,2729.9,5.36]
[1739962419762,0.5,2730.0,2729.9,9.02313]
[1739962421380,0.5,2730.0,2729.9,5.36]
[1739962421538,4.163,2730.0,2729.7,8.235]
[1739962421740,0.7539,2729.9,2729.7,8.235]
[1739962422442,4.45327,2729.8,2729.7,8.235]
[1739962422952,0.79,2729.6,2729.1,3.92911]
[1739962423152,0.79,2729.6,2729.2,3.66406]
[1739962423354,0.79,2729.6,2729.1,3.92911]
[1739962423576,0.79,2729.6,2729.3,3.66391]
[1739962427607,0.79,2729.6,2729.4,3.6638]
[1739962428009,0.79,2729.6,2729.4,3.66373]
[1739962428307,0.79,2729.6,2729.5,3.66367]
[1739962429221,4.97686,2730.0,2729.5,3.66367]
[1739962429374,2.177767,2730.0,2729.1,3.77541863]
[1739962429575,4.97682,2730.0,2729.5,3.66366]
[1739962429800,4.97682,2730.0,2729.5,7.32724]
[1739962429998,1.3138,2730.0,2729.6,3.66352]
[1739962430383,1.3138,2730.0,2729.7,0.03663215]
[1739962430674,1.3138,2730.0,2729.6,3.66352]
[1739962430984,1.3138,2730.0,2729.8,3.66327]
[1739962431177,0.5,2730.0,2729.9,3.66313]
[1739962431573,0.5,2730.0,2729.9,3.92813]
[1739962433420,0.5,2730.0,2729.9,0.265]
[1739962433621,0.5,2730.0,2729.9,3.92813]
[1739962433982,0.5,2730.0,2729.9,4.68727]
[1739962434422,0.5,2730.0,2729.9,10.04727]
[1739962435596,0.5,2730.0,2729.9,10.84537]
[1739962436133,0.5,2730.0,2729.9,13.84537]
[1739962436623,0.5,2730.0,2729.9,14.39537]
[1739962440206,0.5,2730.0,2729.9,23.20537]
[1739962441606,0.5,2730.0,2729.9,22.65537]
[1739962442822,0.5,2730.0,2729.9,25.40168863]
[1739962443353,0.5,2730.0,2729.9,25.95168863]
[1739962447444,0.5,2730.0,2729.9,26.22132785]
[1739962448658,1e-05,2730.0,2729.9,26.22132785]
[1739962452939,1e-05,2730.0,2729.9,28.96764648]
[1739962456976,1e-05,2730.0,2729.9,26.22132785]
[1739962461115,1e-05,2730.0,2729.9,25.95632785]
[1739962461320,1e-05,2730.0,2729.9,34.45432785]
[1739962462526,1e-05,2730.0,2729.9,34.65432785]
[1739962464917,1e-05,2730.0,2729.9,34.38932785]
[1739962465229,1e-05,2730.0,2729.9,34.65432785]
[1739962468986,1e-05,2730.0,2729.9,34.45432785]
[1739962475873,1e-05,2730.0,2729.9,34.55432785]
[1739962482669,1e-05,2730.0,2729.9,34.45432785]
[1739962485597,0.7548,2729.9,2729.5,0.7365337]
[1739962485804,0.7548,2729.9,2729.2,9.02403]
[1739962485952,0.7548,2729.6,2729.2,5.36]
[1739962486153,0.7548,2729.6,2729.3,3.66391]
[1739962486664,0.7548,2729.6,2729.2,9.02396]
[1739962487603,0.7548,2729.6,2729.3,3.66393]
[1739962488496,0.7548,2729.6,2729.2,9.02396]
[1739962489860,0.7548,2729.6,2729.2,5.36]
[1739962490166,0.7553,2729.4,2729.2,5.36]
[1739962490371,0.7553,2729.4,2729.2,9.02406]
[1739962493374,0.7553,2729.4,2729.2,5.36]
[1739962496677,0.7553,2729.4,2729.0,3.6643]
[1739962497188,0.7553,2729.4,2728.9,9.2894]
[1739962497510,0.8195,2729.2,2729.0,3.66434]
[1739962497668,0.8195,2729.2,2728.9,5.625]
[1739962497860,0.8195,2729.2,2728.9,9.2894]
[1739962498563,0.8195,2729.2,2728.9,9.5675133]
[1739962499597,0.8195,2729.2,2728.9,13.2319233]
[1739962500032,0.8195,2729.2,2729.0,3.66427]
[1739962500201,0.8195,2729.2,2728.9,9.5675133]
[1739962500399,0.8195,2729.2,2729.0,3.66434]
[1739962501027,0.8195,2729.2,2728.9,12.95381]
[1739962501229,0.8195,2729.2,2728.9,12.95379]
[1739962501399,0.8195,2729.2,2728.9,5.625]
[1739962501594,0.8273,2729.1,2728.9,5.36]
[1739962502218,3.66448,2728.9,2728.8,0.1496]
[1739962502419,4.49178,2728.9,2728.8,0.1496]
[1739962503400,5.41178,2728.9,2728.8,0.1496]
[1739962503620,5.399393,2728.9,2728.8,0.1496]
[1739962503823,8.14571163,2728.9,2728.8,0.1496]
[1739962504711,4.48123163,2728.9,2728.8,0.1496]
[1739962505058,8.14571163,2728.9,2728.8,0.1496]
[1739962506707,9.06571163,2728.9,2728.8,0.1496]
[1739962507247,5.40123163,2728.9,2728.8,0.1496]
[1739962507451,9.06571163,2728.9,2728.8,0.1496]
[1739962512020,2.654913,2728.9,2728.8,0.1496]
[1739962512423,6.319393,2728.9,2728.8,0.1496]
[1739962512826,2.654913,2728.9,2728.8,0.1496]
[1739962513035,1.7473,2728.9,2728.8,3.81421]
[1739962513239,0.92,2728.9,2728.8,3.81421]
[1739962513426,0.8089,2729.1,2729.0,3.66434]
[1739962513643,1.7289,2729.1,2729.0,3.66434]
[1739962514352,0.7764,2729.3,2729.2,3.66407]
[1739962515531,0.7764,2729.5,2729.3,3.66383]
[1739962516267,0.7764,2729.5,2729.2,3.66405]
[1739962516453,0.7764,2729.5,2729.2,7.32801]
[1739962516860,0.7764,2729.5,2729.3,3.66392]
[1739962517068,0.7764,2729.5,2729.2,3.66396]
[1739962517529,0.7764,2729.5,2729.3,3.66391]
[1739962518476,0.7764,2729.5,2729.2,7.32795]
[1739962518679,0.7764,2729.5,2729.2,3.66396]
[1739962519278,0.7764,2729.5,2729.3,3.6639]
[1739962520254,0.7764,2729.5,2729.3,3.66391]
[1739962521048,0.7764,2729.5,2729.4,3.6638]
[1739962522968,0.7764,2729.5,2729.2,3.66396]
[1739962523176,0.7764,2729.5,2729.3,3.6639]
[1739962523969,0.7764,2729.5,2729.2,3.66396]
[1739962525442,1.220389,2729.5,2729.1,5.36]
[1739962525642,0.7694,2729.3,2729.1,5.36]
[1739962525843,0.7694,2729.3,2729.1,5.625]
[1739962530390,0.7694,2729.3,2729.1,9.2892]
[1739962531795,0.7694,2729.3,2729.2,3.66407]
[1739962533782,0.7535,2729.6,2729.3,3.6639]
[1739962533980,1.46981486,2729.6,2729.3,3.6639]
[1739962534364,0.7535,2729.9,2729.6,3.66353]
[1739962534551,0.92,2729.7,2729.6,3.66353]
[1739962534751,0.92,2729.7,2729.5,7.32732]
[1739962535153,0.92,2729.7,2729.5,7.32726]
[1739962535351,0.92,2729.7,2729.6,3.66354]
[1739962535562,0.92,2729.7,2729.5,3.6636]
[1739962535971,0.7535,2729.9,2729.5,7.32719]
[1739962536491,0.7535,2729.9,2729.6,3.66352]
[1739962537487,0.7535,2729.9,2729.4,0.7656]
[1739962537660,0.7535,2729.9,2729.7,3.66328]
[1739962537869,0.7535,2729.9,2729.7,7.32659]
[1739962538857,0.7535,2729.9,2729.7,3.66328]
[1739962539307,0.7535,2729.9,2729.7,7.32661]
[1739962539506,0.7535,2729.9,2729.7,3.66328]
[1739962539799,0.7535,2729.9,2729.7,7.32658]
[1739962539998,0.7535,2729.9,2729.8,3.66327]
[1739962540350,1e-05,2730.0,2729.8,3.66327]
[1739962540750,1e-05,2730.0,2729.7,3.66328]
[1739962540751,1e-05,2730.0,2729.9,3.66313]
[1739962544974,1e-05,2730.0,2729.9,4.474909]
[1739962545171,1e-05,2730.0,2729.9,9.834909]
[1739962545376,1e-05,2730.0,2729.9,10.099909]
[1739962556060,1e-05,2730.0,2729.9,9.834909]
[1739962556266,1e-05,2730.0,2729.9,9.28813]
[1739962556411,1e-05,2730.0,2729.9,9.02313]
[1739962556636,1e-05,2730.0,2729.9,9.28813]
[1739962559158,1e-05,2730.0,2729.9,10.12103]
[1739962564170,1e-05,2730.0,2729.9,9.28813]
[1739962564371,1e-05,2730.0,2729.9,10.659049]
[1739962580244,0.25071,2730.4,2730.3,3.6626]
[1739962580382,0.25071,2730.4,2730.0,3.66298]
[1739962580383,3.66146,2731.2,2730.5,3.66224]
[1739962580588,0.92,2730.6,2730.5,3.66224]
[1739962581524,0.92,2730.6,2730.5,9.754709]
[1739962582021,1.37248758,2731.3,2730.9,3.66179]
[1739962582222,0.92,2731.0,2730.9,7.32348]
[1739962583031,1.37248758,2731.3,2730.9,3.66169]
[1739962583243,0.8089,2731.2,2730.9,3.66169]
[1739962584082,1.02703876,2731.2,2730.9,7.32341]
[1739962584726,1.02703876,2731.2,2730.9,3.66169]
[1739962584890,0.8089,2731.2,2730.9,7.3234]
[1739962585092,0.8089,2731.2,2731.0,3.66164]
[1739962585421,0.92,2731.1,2731.0,3.66164]
[1739962585626,0.92,2731.1,2730.9,3.66169]
[1739962586227,0.92,2731.1,2730.9,7.3234]
[1739962586404,0.92,2731.1,2731.0,3.66166]
[1739962587329,0.8089,2731.2,2731.1,3.66152]
[1739962587524,1.7289,2731.2,2731.1,3.66152]
[1739962588749,0.8089,2731.2,2731.1,3.66152]
[1739962589531,0.8089,2731.2,2731.1,9.02152]
[1739962589829,0.7677,2731.4,2731.2,7.32276]
[1739962589991,0.92,2731.3,2731.2,7.32276]
[1739962590339,0.7677,2731.4,2731.2,7.32276]
[1739962590720,0.7677,2731.4,2731.2,3.66138]
[1739962590914,0.7677,2731.4,2731.2,7.3227]
[1739962591115,0.7677,2731.4,2731.3,3.66126]
[1739962591435,1.6877,2731.4,2731.2,3.66132]
[1739962591933,1.6877,2731.4,2731.2,7.32264]
[1739962592630,1.6877,2731.4,2731.2,3.66132]
[1739962593914,1.6877,2731.4,2731.3,3.66126]
[1739962594724,1.6877,2731.4,2731.2,3.66132]
[1739962595135,0.92,2731.4,2731.3,3.66126]
[1739962595298,0.756,2731.6,2731.3,3.66124]
[1739962597918,0.756,2731.6,2731.1,5.36]
[1739962598107,0.756,2731.6,2731.2,7.32262]
[1739962598735,0.756,2731.6,2731.2,3.66131]
[1739962598941,0.756,2731.6,2731.3,3.66125]
[1739962599343,3.66095,2731.6,2731.1,9.02142]
[1739962599642,0.7736,2731.5,2731.1,9.02142]
[1739962600939,4.4346,2731.5,2731.1,9.02142]
[1739962601135,1.583141,2731.5,2731.1,5.624]
[1739962601300,0.7956,2731.4,2731.1,5.624]
[1739962601504,4.45699,2731.2,2731.1,5.36]
[1739962601704,0.7956,2731.1,2730.8,0.264]
[1739962602244,3.66168,2731.0,2730.6,5.624]
[1739962602546,0.7956,2730.8,2730.4,3.66245]
[1739962602743,0.7956,2730.8,2730.4,3.92645]
[1739962603044,0.7956,2730.8,2730.4,0.264]
[1739962603418,0.7956,2730.8,2730.4,3.92638]
[1739962604544,0.7956,2730.8,2730.4,0.264]
[1739962604704,0.7956,2730.8,2730.5,3.66222]
[1739962605925,0.7956,2730.8,2730.5,7.32446]
[1739962606143,0.7956,2730.8,2730.5,3.66222]
[1739962606955,0.7956,2730.8,2730.4,0.264]
[1739962608045,0.7956,2730.8,2730.4,3.92643]
[1739962608247,1.59696712,2730.8,2730.4,3.92643]
[1739962608548,1.59696712,2730.8,2730.4,0.264]
[1739962608751,1.59696712,2730.8,2730.4,3.92646]
[1739962608954,0.7956,2730.8,2730.4,3.92646]
[1739962609766,0.7956,2730.8,2730.4,0.264]
[1739962610047,0.7956,2730.8,2730.4,3.92639]
[1739962610449,0.7956,2730.8,2730.4,0.264]
[1739962610632,0.7956,2730.8,2730.5,3.66232]
[1739962611963,0.7956,2730.8,2730.5,3.66225]
[1739962612661,2.16828846,2730.8,2730.5,3.66225]
[1739962612861,2.16828846,2730.8,2730.4,0.264]
[1739962613063,2.16828846,2730.8,2730.4,3.92645]
[1739962613261,1.37268846,2730.6,2730.4,0.264]
[1739962613570,1.37268846,2730.6,2730.3,13.594]
[1739962613571,4.42862,2730.5,2730.3,13.594]
[1739962613728,1.37268846,2730.4,2730.3,8.234]
[1739962615560,5.80134846,2730.4,2730.3,8.234]
[1739962616758,7.17543416,2730.4,2730.3,8.234]
[1739962617089,8.33434146,2730.4,2730.3,8.234]
[1739962618566,0.7662,2730.4,2730.3,8.234]
[1739962618763,0.8128,2730.6,2730.3,8.234]
[1739962619665,0.8128,2730.6,2730.3,3.66259]
[1739962619852,0.8128,2730.6,2730.3,3.66252]
[1739962620763,3.6624,2730.5,2729.7,1.0737]
[1739962620963,3.6624,2730.5,2729.9,3.66304]
[1739962621146,3.6624,2730.5,2729.9,7.3261]
[1739962621346,5.0943,2730.6,2730.1,3.66284]
[1739962621955,3.66233,2730.5,2729.9,7.32604]
[1739962622157,3.66233,2730.5,2729.9,3.663]
[1739962622360,3.66233,2730.5,2730.0,3.66297]
[1739962623231,3.66258,2730.4,2729.8,3.92724]
[1739962623560,4.48878,2730.3,2729.8,3.92724]
[1739962624360,0.8261,2730.3,2729.8,7.59048]
[1739962624670,0.8261,2730.3,2729.8,3.92724]
[1739962624841,4.48871,2730.3,2729.8,3.92724]
[1739962625175,0.8261,2730.3,2729.8,7.5904]
[1739962625481,0.8261,2730.3,2729.8,7.59033]
[1739962625777,0.8261,2730.3,2729.8,3.92716]
[1739962625977,0.8261,2730.3,2729.8,4.767191]
[1739962626183,0.8261,2730.3,2729.9,3.66304]
[1739962626543,0.8261,2730.3,2729.9,3.66312]
[1739962627780,4.48877,2730.3,2729.8,4.767221]
[1739962627941,4.48877,2730.3,2729.9,3.66312]
[1739962628145,3.66283,2730.2,2729.6,3.66344]
[1739962628374,6.40891416,2730.7,2729.6,3.66346]
[1739962628379,4.43974,2730.1,2729.6,3.66346]
[1739962628942,4.43974,2730.1,2729.5,8.499]
[1739962629141,3.66301,2730.0,2729.5,12.16267]
[1739962629644,0.7768,2730.1,2729.6,3.66346]
[1739962630774,4.43968,2730.1,2729.6,3.66346]
[1739962631193,0.7768,2730.1,2729.6,3.66346]
[1739962631392,0.7768,2730.1,2729.7,3.66332]
[1739962631561,0.7768,2730.1,2729.6,3.66346]
[1739962631768,0.7768,2730.1,2729.8,3.66324]
[1739962631972,0.7768,2730.1,2729.8,3.66322]
[1739962632286,0.7916,2730.5,2730.1,3.66278]
[1739962632589,0.7916,2730.5,2730.3,3.66259]
[1739962634086,0.7916,2730.5,2730.1,4.439]
[1739962634291,0.7916,2730.5,2730.2,3.66271]
[1739962634666,0.7916,2730.5,2730.3,3.66252]
[1739962634871,0.7916,2730.5,2730.3,3.6625]
[1739962635891,0.7916,2730.5,2730.4,3.66246]
[1739962636098,0.8003,2730.8,2730.4,3.66246]
[1739962636287,4.46224,2730.8,2730.3,3.6625]
[1739962637997,0.8003,2730.8,2730.4,3.66244]
[1739962638294,0.8003,2730.8,2730.2,5.36]
[1739962638464,0.8003,2730.8,2730.3,4.27622]
[1739962638667,0.8003,2730.8,2730.4,3.66246]
[1739962639876,4.46233,2730.8,2730.3,3.6626]
[1739962640076,4.46233,2730.8,2730.3,3.9266]
[1739962640291,4.46225,2730.8,2730.3,0.264]
[1739962640895,0.8003,2730.8,2730.4,3.66246]
[1739962641197,0.8003,2730.8,2730.5,3.66231]
[1739962641398,0.8003,2730.8,2730.3,3.92652]
[1739962641563,0.8003,2730.8,2730.4,3.66239]
[1739962641895,0.7714,2731.1,2730.7,3.66195]
[1739962642300,0.7714,2731.1,2730.9,3.66178]
[1739962642495,0.7714,2731.1,2730.8,3.66184]
[1739962642976,0.7714,2731.1,2730.7,3.66195]
[1739962643601,0.7714,2731.1,2730.9,3.66179]
[1739962643899,0.7714,2731.1,2730.9,3.66172]
[1739962644208,1.7253,2731.3,2730.9,3.66172]
[1739962644505,1.7253,2731.3,2730.9,7.3234]
[1739962644799,1.7253,2731.3,2731.2,3.66139]
[1739962644969,0.92,2731.3,2731.2,3.66139]
[1739962645370,0.92,2731.3,2731.1,3.92552]
[1739962645571,0.92,2731.3,2731.2,3.66139]
[1739962645772,0.92,2731.3,2731.2,4.42249]
[1739962646588,0.7523,2731.6,2731.2,4.42249]
[1739962646589,0.7523,2731.6,2731.4,3.66108]
[1739962647803,0.7523,2731.6,2731.2,4.42249]
[1739962648100,0.7523,2731.6,2731.3,3.66116]
[1739962648305,0.7523,2731.6,2731.2,4.4224]
[1739962648306,0.7523,2731.6,2731.4,3.66104]
[1739962648605,0.7523,2731.6,2731.5,3.66099]
[1739962648898,0.7876,2732.0,2731.5,3.66099]
[1739962651607,0.7876,2732.0,2731.4,7.32209]
[1739962651812,0.7876,2732.0,2731.5,3.66098]
[1739962652902,4.44798,2732.0,2731.5,3.66098]
[1739962654612,0.7876,2732.0,2731.5,3.66088]
[1739962655189,0.7876,2732.0,2731.5,4.07086692]
[1739962655395,0.7876,2732.0,2731.6,3.66075]
[1739962655997,4.44794,2732.0,2731.5,4.87346692]
[1739962656212,4.44794,2732.0,2731.5,8.53438692]
[1739962656922,4.44794,2732.0,2731.5,4.87346692]
[1739962657614,4.44794,2732.0,2731.5,8.53436692]
[1739962658186,4.44794,2732.0,2731.5,4.87346692]
[1739962659312,4.44794,2732.0,2731.5,8.53438692]
[1739962659513,4.44794,2732.0,2731.5,4.87346692]
[1739962660455,0.7876,2732.0,2731.6,3.66082]
[1739962661527,9.40664416,2732.4,2731.9,3.66045]
[1739962661692,0.92,2732.0,2731.9,3.66045]
[1739962662226,0.92,2732.0,2731.9,4.42955]
[1739962663424,0.92,2732.0,2731.9,4.69355]
[1739962663624,0.7896,2732.4,2732.0,3.66027]
[1739962664531,0.7896,2732.4,2731.9,1.0331]
[1739962664734,4.4494,2732.4,2731.9,8.35398]
[1739962664902,0.7896,2732.4,2732.0,3.66032]
[1739962665397,4.44946,2732.4,2731.9,5.13499731]
[1739962665799,0.7896,2732.4,2732.0,3.66024]
[1739962666007,4.44947,2732.4,2731.9,5.13499731]
[1739962666344,3.66,2732.3,2731.9,0.70545731]
[1739962666513,4.44947,2732.4,2731.9,0.70545731]
[1739962666910,4.44947,2732.4,2731.7,13.45495]
[1739962666911,3.65992,2732.3,2731.8,3.66053]
[1739962667124,0.7604,2732.2,2731.8,3.92451]
[1739962667829,0.7604,2732.2,2731.8,0.264]
[1739962668030,0.7604,2732.2,2731.9,3.66034]
[1739962668726,0.7604,2732.2,2731.8,3.92458]
[1739962668903,0.7604,2732.2,2731.8,5.30444487]
[1739962669957,0.7604,2732.2,2731.7,5.624]
[1739962669958,0.92,2732.0,2731.7,5.624]
[1739962670922,0.92,2732.0,2731.7,9.28467]
[1739962671263,0.92,2732.0,2731.7,5.624]
[1739962671763,4.58041,2732.0,2731.7,5.624]
[1739962671963,0.7711,2731.8,2731.7,5.36]
[1739962672154,0.7711,2731.8,2731.5,3.9249]
[1739962672965,0.92,2732.0,2731.7,3.66072]
[1739962673162,0.92,2732.0,2731.8,3.66055]
[1739962674452,0.92,2732.0,2731.9,3.66045]
[1739962675544,0.7728,2732.3,2731.9,3.66045]
[1739962676275,0.7728,2732.3,2732.1,3.66018]
[1739962676439,0.92,2732.2,2732.1,3.66018]
[1739962677290,0.92,2732.2,2731.9,3.66045]
[1739962678180,0.92,2732.2,2731.8,5.36]
[1739962678363,0.92,2732.2,2731.8,9.02057]
[1739962679480,0.92,2732.2,2731.9,3.66034]
[1739962679897,0.92,2732.2,2731.9,7.32072]
[1739962680045,0.92,2732.2,2731.9,3.66034]
[1739962680542,0.92,2732.2,2731.8,5.36]
[1739962680739,0.81,2732.1,2731.8,5.36]
[1739962680977,5.009314,2732.1,2731.8,5.36]
[1739962681397,5.009304,2732.1,2731.8,5.36]
[1739962681593,3.6604,2732.0,2731.8,5.36]
[1739962682058,3.66032,2732.0,2731.8,5.36]
[1739962683200,1.349014,2732.1,2731.8,5.36]
[1739962683381,0.81,2732.1,2731.8,5.36]
[1739962683690,4.47018,2732.1,2731.8,5.36]
[1739962683893,4.47018,2732.1,2731.7,3.66063]
[1739962684095,0.81,2732.1,2731.7,3.66063]
[1739962684492,0.81,2732.1,2731.7,3.66071]
[1739962685005,0.92,2732.2,2731.9,3.66045]
[1739962685212,0.92,2732.2,2732.0,3.66031]
[1739962685513,0.92,2732.2,2731.9,3.66045]
[1739962685962,0.92,2732.2,2732.0,3.6603]
[1739962686832,0.92,2732.2,2731.9,3.66045]
[1739962687296,0.92,2732.2,2732.0,3.66022]
[1739962688700,0.92,2732.2,2731.9,7.32081]
[1739962689469,0.92,2732.2,2731.9,3.66036]
[1739962689648,0.92,2732.2,2732.0,3.66023]
[1739962689997,0.92,2732.2,2732.0,3.66021]
[1739962690164,0.92,2732.2,2731.9,3.66036]
[1739962690495,0.92,2732.2,2731.9,7.32069]
[1739962690857,0.92,2732.2,2732.0,3.6603]
[1739962691151,0.92,2732.2,2732.1,3.66018]
[1739962691397,0.92,2732.2,2731.9,7.32065]
[1739962691593,0.92,2732.2,2732.0,3.66026]
[1739962692499,0.92,2732.2,2732.0,3.6603]
[1739962692995,0.92,2732.2,2731.9,3.66032]
[1739962693195,1.7034,2732.2,2731.8,5.36]
[1739962693381,1.7034,2732.2,2731.8,9.02058]
[1739962694164,1.7034,2732.2,2731.8,5.36]
[1739962694480,1.7034,2732.2,2731.8,9.02056]
[1739962695609,1.7034,2732.2,2731.8,9.28456]
[1739962696099,1.7034,2732.2,2731.8,5.624]
[1739962696468,2.51441042,2732.2,2731.8,5.624]
[1739962697194,6.17456042,2732.2,2731.8,5.624]
[1739962697366,6.17456042,2732.2,2731.8,5.36]
[1739962697983,3.66038,2732.0,2731.8,5.36]
[1739962698703,2.51441042,2732.2,2731.8,5.36]
[1739962698852,0.25144104,2732.1,2731.8,5.36]
[1739962699569,3.91167104,2732.1,2731.8,5.36]
[1739962701102,0.25144104,2732.1,2731.8,5.36]
[1739962701608,5.36352,2732.2,2731.7,3.92468]
[1739962701961,4.44352,2732.2,2731.7,3.92468]
[1739962704004,4.44352,2732.2,2731.6,3.66077]
[1739962704206,3.66029,2732.1,2731.6,7.58554]
[1739962704576,0.8235,2732.0,2731.6,3.92477]
[1739962704775,1.271869,2732.0,2731.6,3.92477]
[1739962705172,1.271869,2732.0,2731.2,17.3437]
[1739962705375,3.6606,2731.8,2731.3,0.264]
[1739962705753,3.66049,2731.9,2731.4,3.66102]
[1739962706806,3.66045,2731.9,2731.3,3.92522]
[1739962707678,3.66045,2731.9,2731.4,3.66112]
[1739962708687,3.66061,2731.8,2731.4,3.66112]
[1739962709003,3.66061,2731.8,2731.3,3.66124]
[1739962709211,3.66061,2731.8,2731.2,18.005]
[1739962709212,4.45686,2731.7,2731.2,17.2533]
[1739962709505,0.7961,2731.4,2731.2,13.592]
[1739962709704,0.7961,2731.4,2731.2,8.232]
[1739962710083,3.66126,2731.3,2731.2,8.232]
[1739962711406,0.7961,2731.4,2731.2,8.232]
[1739962711611,4.45729,2731.4,2730.9,3.92572]
[1739962711818,4.45729,2731.4,2730.9,3.92577]
[1739962713239,0.7961,2731.4,2731.0,3.66155]
[1739962713385,0.7961,2731.4,2731.1,3.66149]
[1739962713579,0.7687,2731.7,2731.2,3.66131]
[1739962713786,1.51483786,2731.7,2731.2,3.6613]
[1739962713986,0.7687,2731.7,2731.4,3.66112]
[1739962714378,4.42922,2731.9,2731.4,4.45152]
[1739962715019,4.42922,2731.9,2731.4,3.66112]
[1739962715515,4.42922,2731.9,2731.2,4.4174]
[1739962716602,3.66061,2731.8,2731.3,3.66119]
[1739962716913,4.5144299,2731.8,2731.3,3.66119]
[1739962717234,0.8538199,2731.8,2731.2,4.4174]
[1739962717431,4.42922,2731.9,2731.3,3.66116]
[1739962717602,3.6607,2731.8,2731.2,4.41737]
[1739962717903,3.6607,2731.8,2731.3,3.66117]
[1739962718316,4.42916,2731.9,2731.3,3.66113]
[1739962718699,8.0897,2731.9,2731.3,3.66113]
[1739962719009,0.8538069,2731.8,2731.3,3.66113]
[1739962720528,4.5144569,2731.8,2731.3,3.66113]
[1739962720831,4.5144569,2731.8,2731.3,7.3223]
[1739962721033,0.8538069,2731.8,2731.3,7.3223]
[1739962722226,0.8538069,2731.8,2731.4,3.66112]